bitfinex/quotes_BTCUSD_20210402
["timestamp","ask_amount","ask_price","bid_price","bid_amount"]
[1617332085315,0.00034072,59683.0,59668.0,0.99332705]
[1617332085511,0.07021072,59707.0,59669.0,2.42]
[1617332085715,0.162,59702.0,59669.0,3.41332705]
[1617332085912,0.07021072,59707.0,59669.0,3.41332705]
[1617332085913,0.60137,59692.0,59669.0,0.99332705]
[1617332086114,0.44337,59692.0,59670.0,0.99332705]
[1617332086313,0.44337,59692.0,59671.0,0.23240578]
[1617332086560,0.44337,59692.0,59672.0,0.99332705]
[1617332086744,0.43837,59692.0,59672.0,0.99332705]
[1617332087542,0.43837,59692.0,59672.0,0.99143505]
[1617332087751,0.07107,59693.0,59690.0,0.155]
[1617332087954,0.00303724,59715.0,59691.0,0.99143505]
[1617332088148,0.17003724,59723.0,59692.0,0.23240578]
[1617332088351,0.17003724,59723.0,59693.0,0.99143505]
[1617332088352,0.167,59723.0,59693.0,0.99143505]
[1617332088549,0.167,59723.0,59696.0,1.13379494]
[1617332088749,0.167,59723.0,59697.0,0.99143505]
[1617332088948,0.167,59723.0,59696.0,0.05]
[1617332089161,0.23544302,59722.0,59697.0,5.0]
[1617332089356,0.00303724,59722.0,59697.0,5.0]
[1617332089559,0.167,59723.0,59698.0,0.99143505]
[1617332089760,0.167,59723.0,59699.0,0.18896496]
[1617332089958,0.167,59723.0,59700.0,0.99143505]
[1617332090156,0.167,59723.0,59700.0,1.04143505]
[1617332090356,0.00085277,59737.0,59701.0,0.99143505]
[1617332090559,0.00303724,59736.0,59702.0,0.18926697]
[1617332090760,0.23325855,59737.0,59699.0,0.06302]
[1617332091161,0.57200139,59735.0,59667.0,0.4613]
[1617332091361,0.57200139,59735.0,59683.0,5.0]
[1617332091362,0.39453724,59734.0,59683.0,5.0]
[1617332091559,0.23240578,59716.0,59683.0,5.0]
[1617332091780,0.158,59715.0,59683.0,5.0]
[1617332092179,0.1,59700.0,59674.0,0.153]
[1617332092378,0.49764,59700.0,59675.0,0.99143505]
[1617332092779,0.66364,59700.0,59675.0,0.99143505]
[1617332092979,0.165,59699.0,59665.0,0.99143505]
[1617332093185,0.162,59692.0,59659.0,5.0]
[1617332093385,0.00303724,59690.0,59654.0,0.155]
[1617332093582,0.263,59682.0,59636.0,5.0]
[1617332093783,0.23240578,59681.0,59645.0,0.99143505]
[1617332094180,0.16803724,59680.0,59626.0,0.99143505]
[1617332094410,0.59453724,59679.0,59626.0,0.99143505]
[1617332094611,0.1,59663.0,59626.0,0.99143505]
[1617332094814,0.23544302,59662.0,59626.0,0.99143505]
[1617332095007,0.1719437,59661.0,59626.0,0.99143505]
[1617332095209,0.00303724,59655.0,59627.0,0.23240578]
[1617332095410,0.1,59644.0,59629.0,0.99143505]
[1617332095609,0.1,59644.0,59631.0,0.99143505]
[1617332095811,0.1,59644.0,59639.0,0.23240578]
[1617332096013,0.167,59660.0,59643.0,2.41]
[1617332096215,0.167,59660.0,59654.0,0.99143505]
[1617332096411,0.22086274,59674.0,59654.0,0.89143505]
[1617332096610,0.1,59659.0,59657.0,0.89143505]
[1617332096812,0.22134918,59678.0,59673.0,0.163]
[1617332097036,0.22159156,59682.0,59675.0,0.23174728]
[1617332097236,0.0976,59678.0,59676.0,0.77643505]
[1617332097634,0.22191083,59693.0,59677.0,0.77143505]
[1617332097842,0.22239839,59699.0,59689.0,0.16417977]
[1617332098036,0.00303724,59721.0,59690.0,0.77143505]
[1617332098037,0.22230679,59716.0,59690.0,0.77143505]
[1617332098237,0.22245801,59720.0,59690.0,1.22124505]
[1617332098436,0.22245801,59720.0,59691.0,0.77143505]
[1617332098437,0.16,59715.0,59691.0,0.77143505]
[1617332098632,0.16,59715.0,59691.0,0.69643505]
[1617332098835,0.16,59715.0,59692.0,0.384966]
[1617332099035,0.16,59715.0,59693.0,0.69643505]
[1617332099237,0.16,59715.0,59694.0,0.384966]
[1617332099454,0.16,59715.0,59673.0,0.163]
[1617332099455,0.22929254,59714.0,59673.0,0.163]
[1617332099701,0.15760001,59697.0,59644.0,0.4967]
[1617332099885,0.53589473,59696.0,59657.0,0.69643505]
[1617332100084,0.06712191,59684.0,59662.0,0.164]
[1617332100281,0.47222191,59684.0,59662.0,0.164]
[1617332100483,0.15760001,59679.0,59662.0,0.164]
[1617332100681,0.192284,59678.0,59662.0,0.164]
[1617332100882,0.032284,59678.0,59663.0,0.69643505]
[1617332101086,0.13944,59680.0,59662.0,0.164]
[1617332101285,0.15760001,59670.0,59663.0,0.22929254]
[1617332101490,0.15760001,59670.0,59667.0,0.384966]
[1617332101686,0.15760001,59670.0,59664.0,0.69643505]
[1617332101687,1e-08,59670.0,59669.0,3.64740105]
[1617332102284,1e-08,59670.0,59669.0,3.94740105]
[1617332102486,1e-08,59670.0,59669.0,3.94240105]
[1617332102886,0.167,59702.0,59683.0,0.69643505]
[1617332103087,0.167,59702.0,59694.0,0.23068824]
[1617332103288,0.16903724,59734.0,59698.0,0.384966]
[1617332103487,0.01608416,59739.0,59707.0,0.53928266]
[1617332103689,0.01608416,59739.0,59709.0,2.41]
[1617332103888,0.01608416,59739.0,59716.0,0.12552436]
[1617332104084,0.30356495,59738.0,59717.0,0.23068824]
[1617332104284,0.01608416,59739.0,59716.0,0.17552436]
[1617332104483,0.01608416,59739.0,59725.0,0.09657858]
[1617332104684,0.01608416,59739.0,59738.0,0.157]
[1617332104909,0.00108416,59739.0,59720.0,0.3453]
[1617332105112,0.00108416,59739.0,59721.0,0.69643505]
[1617332105315,0.00108416,59739.0,59738.0,3.0439608]
[1617332105514,4.16e-06,59739.0,59738.0,4.36536185]
[1617332105715,4.16e-06,59739.0,59738.0,4.66536185]
[1617332105920,4.16e-06,59739.0,59738.0,4.57936185]
[1617332106114,4.16e-06,59739.0,59738.0,1.2329268]
[1617332106321,4.16e-06,59739.0,59738.0,0.4113]
[1617332106322,0.00277602,59739.0,59738.0,0.4113]
[1617332106515,0.00277602,59739.0,59733.0,5.0]
[1617332106516,0.30634097,59739.0,59733.0,5.0]
[1617332106712,0.22669056,59745.0,59707.0,0.1]
[1617332106912,0.33888619,59744.0,59719.0,5.0]
[1617332107110,0.46356495,59743.0,59719.0,5.0]
[1617332107309,0.00276658,59728.0,59719.0,5.0]
[1617332107542,0.05416,59734.0,59702.0,0.928]
[1617332107740,0.165,59720.0,59698.0,0.9966]
[1617332108040,0.0396,59731.0,59696.0,5.0]
[1617332108041,0.22068196,59718.0,59696.0,5.0]
[1617332108236,0.30356495,59717.0,59669.0,0.156]
[1617332108439,0.30356495,59717.0,59680.0,0.155]
[1617332108440,0.22568196,59708.0,59680.0,0.155]
[1617332108643,0.22568196,59708.0,59657.0,5.0]
[1617332108644,0.30356495,59700.0,59657.0,5.0]
[1617332108845,0.164,59689.0,59661.0,0.02]
[1617332109040,0.22568196,59687.0,59661.0,0.02]
[1617332109239,0.22568196,59679.0,59661.0,0.02]
[1617332109435,0.00303724,59677.0,59661.0,0.02]
[1617332109637,0.032284,59676.0,59662.0,0.69643505]
[1617332109836,0.15140724,59687.0,59661.0,0.71643505]
[1617332110054,0.2,59669.0,59662.0,0.69643505]
[1617332110255,0.2,59669.0,59666.0,0.384966]
[1617332110456,0.2,59669.0,59668.0,2.794966]
[1617332110655,0.167,59688.0,59668.0,2.794966]
[1617332110656,0.166,59709.0,59668.0,3.65240105]
[1617332110865,0.166,59709.0,59677.0,0.69643505]
[1617332111059,0.166,59709.0,59685.0,0.69643505]
[1617332111258,0.166,59709.0,59691.0,0.60303504]
[1617332111459,0.166,59709.0,59692.0,0.99104428]
[1617332111659,0.166,59709.0,59695.0,0.251447]
[1617332111860,0.166,59709.0,59699.0,0.384972]
[1617332112058,0.00034056,59750.0,59700.0,0.00303724]
[1617332112258,0.01976462,59749.0,59700.0,0.00303724]
[1617332112459,0.1156145,59748.0,59700.0,0.00303724]
[1617332112681,0.01976433,59747.0,59700.0,0.00303724]
[1617332112881,0.01976433,59747.0,59703.0,0.251412]
[1617332113081,0.01476351,59749.0,59704.0,0.00303724]
[1617332113280,0.00034056,59750.0,59718.0,0.00303724]
[1617332113483,0.00010407,59750.0,59726.0,0.008]
[1617332113683,0.00010407,59750.0,59727.0,0.00303724]
[1617332114282,0.232283,59746.0,59726.0,0.00603724]
[1617332114491,0.227316,59742.0,59710.0,0.004]
[1617332114685,0.0018,59740.0,59710.0,0.004]
[1617332114889,0.2,59727.0,59709.0,0.00253549]
[1617332115084,0.54635324,59726.0,59709.0,0.00253549]
[1617332115306,0.15,59725.0,59698.0,0.004]
[1617332115510,0.2,59718.0,59698.0,0.004]
[1617332115710,0.54696496,59717.0,59710.0,0.00746517]
[1617332115906,0.387316,59713.0,59710.0,0.00746517]
[1617332116105,1.957316,59711.0,59710.0,0.00746517]
[1617332116307,2.18545546,59711.0,59710.0,0.00746517]
[1617332116511,1.00545546,59711.0,59710.0,0.00746517]
[1617332116708,0.65545546,59711.0,59710.0,0.00746517]
[1617332116906,0.570516,59711.0,59710.0,0.00746517]
[1617332117306,2.980516,59711.0,59710.0,0.00746517]
[1617332117508,0.570516,59711.0,59710.0,0.00746517]
[1617332118327,0.570516,59711.0,59710.0,0.00246517]
[1617332118730,0.730516,59711.0,59710.0,0.00246517]
[1617332119331,2.910516,59711.0,59710.0,0.00246517]
[1617332119729,3.345516,59711.0,59710.0,0.00246517]
[1617332119929,1.24875639,59711.0,59710.0,0.00246517]
[1617332120131,0.730516,59711.0,59710.0,0.00212465]
[1617332121149,0.730516,59711.0,59695.0,0.157]
[1617332121351,0.170516,59711.0,59697.0,2.41]
[1617332121551,0.22884124,59731.0,59697.0,2.41]
[1617332121552,0.22884124,59731.0,59698.0,0.60303504]
[1617332121751,0.2,59703.0,59698.0,0.60303504]
[1617332121956,0.2,59703.0,59702.0,2.566]
[1617332122152,0.2,59703.0,59702.0,3.55397104]
[1617332122349,0.2,59703.0,59702.0,1.14397104]
[1617332122952,0.2,59703.0,59702.0,0.74403504]
[1617332123179,0.2,59703.0,59702.0,0.191]
[1617332123379,0.2,59703.0,59702.0,1.161]
[1617332123780,0.2,59703.0,59702.0,0.141]
[1617332123990,0.370489,59703.0,59687.0,0.251485]
[1617332124184,0.2,59703.0,59700.0,0.16]
[1617332124383,0.170489,59702.0,59700.0,0.16]
[1617332124985,0.2,59703.0,59700.0,0.16]
[1617332124986,0.2,59703.0,59700.0,0.76303504]
[1617332125182,0.195,59703.0,59701.0,0.384936]
[1617332125584,0.195,59703.0,59684.0,0.06853623]
[1617332125808,0.195,59703.0,59685.0,0.60303504]
[1617332126006,0.195,59703.0,59686.0,0.384947]
[1617332126206,0.195,59703.0,59687.0,0.60303504]
[1617332126408,0.195,59703.0,59686.0,0.384947]
[1617332126409,0.59196496,59703.0,59688.0,0.384947]
[1617332126606,0.175487,59702.0,59680.0,5.0]
[1617332126805,0.195,59703.0,59681.0,0.60303504]
[1617332126806,0.22751632,59701.0,59681.0,0.60303504]
[1617332127007,0.88968244,59711.0,59681.0,0.60303504]
[1617332127008,0.08500953,59710.0,59681.0,0.98798204]
[1617332127210,0.2,59691.0,59682.0,0.59803504]
[1617332127404,0.2,59691.0,59686.0,0.384947]
[1617332127604,0.2,59691.0,59690.0,0.384947]
[1617332127806,0.2,59691.0,59690.0,0.545947]
[1617332128005,0.2,59691.0,59690.0,0.595947]
[1617332129224,0.2,59691.0,59690.0,0.545947]
[1617332129708,0.2,59691.0,59671.0,0.30272826]
[1617332129907,0.2,59691.0,59690.0,1.05]
[1617332130105,0.2,59691.0,59690.0,1.434947]
[1617332130304,0.2,59691.0,59690.0,2.844947]
[1617332130508,0.19290799,59691.0,59690.0,2.844947]
[1617332130704,0.19290799,59691.0,59690.0,3.44298204]
[1617332130903,0.19290799,59691.0,59690.0,2.844947]
[1617332131104,0.19200799,59691.0,59690.0,3.002947]
[1617332131307,0.19200799,59691.0,59690.0,0.592947]
[1617332132105,0.18200799,59691.0,59690.0,1.192947]
[1617332132308,0.18200799,59691.0,59690.0,0.542947]
[1617332132506,0.18200799,59691.0,59690.0,1.14098204]
[1617332133113,7.99e-06,59691.0,59690.0,1.14098204]
[1617332133312,0.20000799,59691.0,59690.0,1.79137204]
[1617332133707,0.20000799,59691.0,59690.0,2.38871204]
[1617332134110,7.99e-06,59691.0,59690.0,2.38871204]
[1617332134316,7.99e-06,59691.0,59690.0,1.540677]
[1617332134514,2.81197295,59691.0,59690.0,0.384947]
[1617332134713,0.74445995,59691.0,59669.0,1.07172488]
[1617332134916,0.3915,59689.0,59669.0,1.07172488]
[1617332135113,0.3915,59687.0,59669.0,1.07172488]
[1617332135310,0.22647136,59690.0,59669.0,1.07172488]
[1617332135311,0.2,59679.0,59669.0,1.07172488]
[1617332135516,0.385013,59675.0,59669.0,1.07172488]
[1617332135711,0.62843632,59678.0,59669.0,1.07172488]
[1617332135712,0.170404,59671.0,59669.0,1.07172488]
[1617332135910,3.02697796,59670.0,59669.0,1.07172488]
[1617332136110,3.67697796,59670.0,59669.0,1.07172488]
[1617332137316,0.40196496,59666.0,59661.0,4.88e-06]
[1617332137526,0.40196496,59647.0,59636.0,0.1]
[1617332137723,0.55596496,59637.0,59611.0,0.01125397]
[1617332137917,0.159,59630.0,59611.0,0.01325397]
[1617332138116,0.39453724,59628.0,59611.0,0.01325397]
[1617332138315,1.01367028,59629.0,59611.0,0.01325397]
[1617332138316,0.39453724,59626.0,59611.0,0.01325397]
[1617332138516,0.39453724,59623.0,59611.0,0.01325397]
[1617332138717,0.385103,59619.0,59611.0,0.01325397]
[1617332138931,0.39453724,59621.0,59611.0,0.01325397]
[1617332138932,0.1703,59615.0,59611.0,0.01325397]
[1617332139132,1.42912,59612.0,59611.0,0.01325397]
[1617332139335,2.54118796,59612.0,59611.0,0.01325397]
[1617332139735,1.079223,59612.0,59611.0,0.01325397]
[1617332139933,1.029223,59612.0,59611.0,0.01325397]
[1617332140141,3e-06,59612.0,59611.0,0.61128901]
[1617332140338,0.00303724,59643.0,59611.0,1.13269558]
[1617332140535,0.39453724,59657.0,59612.0,0.98339804]
[1617332140735,0.39453724,59657.0,59613.0,0.98339804]
[1617332140736,0.54329836,59656.0,59613.0,0.98339804]
[1617332140934,1.3115022,59655.0,59637.0,0.16]
[1617332141135,0.39453724,59649.0,59611.0,0.01125397]
[1617332141337,0.39453724,59649.0,59615.0,0.00303724]
[1617332141338,0.40196496,59643.0,59615.0,0.00303724]
[1617332141565,1.9235052,59628.0,59615.0,0.00303724]
[1617332141763,1.9235052,59628.0,59611.0,0.01325397]
[1617332141764,0.22758542,59623.0,59611.0,0.01325397]
[1617332141961,1.46006056,59622.0,59611.0,0.01125397]
[1617332142164,0.37629836,59620.0,59611.0,0.01125397]
[1617332142359,0.9167622,59619.0,59611.0,0.01125397]
[1617332142558,0.7465022,59618.0,59611.0,0.01125397]
[1617332142759,0.34453724,59616.0,59611.0,0.01125397]
[1617332142958,0.34453724,59620.0,59611.0,0.01125397]
[1617332143159,0.23,59612.0,59611.0,0.01125397]
[1617332143360,0.86778,59612.0,59611.0,0.01125397]
[1617332143559,1.26974496,59612.0,59611.0,0.01125397]
[1617332143766,1.26974496,59612.0,59600.0,0.01000397]
[1617332143767,0.39696496,59611.0,59600.0,0.01000397]
[1617332143960,0.17026,59607.0,59590.0,0.00022]
[1617332144197,0.34453724,59602.0,59588.0,0.00022]
[1617332144451,0.33526,59598.0,59592.0,0.002]
[1617332144650,0.17026,59594.0,59592.0,0.002]
[1617332144849,0.93352332,59593.0,59585.0,0.00022]
[1617332145054,0.93352332,59593.0,59570.0,0.00022]
[1617332145055,0.16526,59589.0,59575.0,0.04308]
[1617332145252,0.58196496,59588.0,59575.0,0.04308]
[1617332145450,0.55219796,59587.0,59575.0,0.04308]
[1617332145649,0.38696496,59586.0,59575.0,0.04308]
[1617332145858,0.165233,59582.0,59575.0,0.02808]
[1617332146050,0.3865029,59585.0,59575.0,0.02808]
[1617332146051,0.329233,59578.0,59575.0,0.01808]
[1617332146250,2.235233,59576.0,59575.0,0.01808]
[1617332146451,2.62219796,59576.0,59575.0,0.01654]
[1617332146652,2.43696496,59575.0,59562.0,0.00022]
[1617332146851,0.165233,59571.0,59562.0,0.00022]
[1617332147049,0.165233,59571.0,59561.0,0.01044]
[1617332147050,0.165233,59567.0,59561.0,0.01044]
[1617332147249,0.38696496,59566.0,59561.0,0.01044]
[1617332147451,2.225233,59562.0,59561.0,0.01044]
[1617332147659,2.225233,59562.0,59535.0,0.00022]
[1617332147660,0.38696496,59561.0,59540.0,6e-05]
[1617332147853,0.165233,59560.0,59536.0,0.00325724]
[1617332148055,0.77801724,59558.0,59536.0,0.00022]
[1617332148251,0.77801724,59558.0,59531.0,0.00325724]
[1617332148252,0.38696496,59552.0,59531.0,0.00325724]
[1617332148461,0.2187013,59556.0,59515.0,0.00022]
[1617332148462,0.163,59541.0,59515.0,0.00022]
[1617332148665,0.163,59541.0,59489.0,0.420277]
[1617332148666,0.38696496,59533.0,59441.0,0.12330765]
[1617332148859,0.38696496,59533.0,58911.0,0.04]
[1617332149257,0.38696496,59533.0,59353.0,1.20462]
[1617332149470,0.38696496,59533.0,58911.0,0.04]
[1617332149471,0.38696496,59533.0,59514.0,0.00022]
[1617332149472,0.6,59519.0,59514.0,0.00022]
[1617332149668,1.402,59465.0,59460.0,0.99158404]
[1617332149859,1.402,59465.0,59435.0,0.72792282]
[1617332149860,0.33953724,59464.0,59425.0,0.03]
[1617332150059,0.33953724,59462.0,59441.0,0.60803504]
[1617332150255,0.00303724,59463.0,59442.0,0.60803504]
[1617332150456,0.51992724,59464.0,59444.0,0.60803504]
[1617332150657,0.6962256,59464.0,59444.0,0.60803504]
[1617332150854,0.05,59463.0,59444.0,0.60003504]
[1617332151057,0.37629836,59462.0,59445.0,0.59803504]
[1617332151259,0.42629836,59462.0,59426.0,0.59303504]
[1617332151461,2.39967796,59423.0,59416.0,0.336574]
[1617332151657,2.74907796,59423.0,59416.0,0.336574]
[1617332151857,0.11166,59432.0,59417.0,2.4]
[1617332152059,0.02,59439.0,59436.0,0.19822676]
[1617332152255,0.02,59439.0,59436.0,0.19522676]
[1617332152256,0.01978,59439.0,59436.0,0.19522676]
[1617332152454,0.168,59452.0,59438.0,2.785533]
[1617332152664,1.282,59465.0,59440.0,2.4]
[1617332152862,0.2,59453.0,59444.0,0.385533]
[1617332153058,0.075,59478.0,59448.0,0.385533]
[1617332153059,0.05798,59478.0,59448.0,0.385533]
[1617332153259,0.05798,59478.0,59453.0,3.5046]
[1617332153457,0.2,59504.0,59458.0,2.385]
[1617332153658,0.66347908,59514.0,59458.0,2.385]
[1617332153659,2.00610788,59501.0,59459.0,0.38857024]
[1617332153864,0.2,59468.0,59459.0,0.38857024]
[1617332154059,0.167,59485.0,59463.0,0.385533]
[1617332154261,0.19978,59507.0,59468.0,0.16852805]
[1617332154458,2.00892163,59519.0,59469.0,3.889133]
[1617332154692,0.267,59518.0,59473.0,0.00303724]
[1617332154891,0.267,59518.0,59509.0,0.00022]
[1617332155090,0.02,59539.0,59510.0,0.319029]
[1617332155287,0.167,59517.0,59510.0,0.31768722]
[1617332155488,0.02,59539.0,59515.0,0.31809776]
[1617332155688,0.2,59516.0,59515.0,0.45309776]
[1617332155891,1.34106244,59571.0,59516.0,2.41]
[1617332155892,0.33827,59550.0,59516.0,2.41]
[1617332156092,0.33827,59550.0,59518.0,0.252108]
[1617332156291,2.01653269,59576.0,59520.0,0.65323]
[1617332156492,0.2,59533.0,59522.0,0.00303724]
[1617332156689,0.2,59533.0,59527.0,0.10577848]
[1617332156886,0.2,59533.0,59527.0,0.05]
[1617332157308,0.2,59533.0,59531.0,0.285853]
[1617332157512,0.2,59533.0,59532.0,0.385853]
[1617332157712,0.367,59533.0,59526.0,0.158]
[1617332157911,0.385828,59532.0,59509.0,0.00022]
[1617332158108,0.31599552,59532.0,59509.0,0.00022]
[1617332158313,0.48299552,59533.0,59509.0,0.00022]
[1617332158518,0.2,59521.0,59509.0,0.00022]
[1617332158717,0.31599552,59515.0,59509.0,0.00022]
[1617332158910,0.43796,59516.0,59509.0,0.00022]
[1617332159314,0.2,59513.0,59509.0,0.00022]
[1617332159984,0.166,59540.0,59512.0,0.16]
[1617332160183,0.166,59540.0,59513.0,0.31641448]
[1617332160380,0.166,59540.0,59514.0,0.385828]
[1617332160580,0.53270001,59527.0,59515.0,0.025]
[1617332160785,1e-08,59527.0,59516.0,0.00303724]
[1617332160975,1e-08,59527.0,59520.0,0.385828]
[1617332161184,0.166,59565.0,59524.0,0.385828]
[1617332161385,0.166,59565.0,59539.0,0.11491499]
[1617332161579,0.166,59565.0,59540.0,0.36957074]
[1617332161779,0.166,59565.0,59544.0,0.385828]
[1617332161980,0.166,59565.0,59545.0,0.38886524]
[1617332162182,0.166,59565.0,59529.0,0.15621627]
[1617332162183,1.70539874,59564.0,59529.0,0.15621627]
[1617332162386,0.33827,59558.0,59522.0,0.00303724]
[1617332162580,0.33827,59558.0,59512.0,0.16]
[1617332162581,0.31957074,59556.0,59512.0,0.16]
[1617332162778,1.37609736,59555.0,59512.0,0.16]
[1617332162979,0.157,59552.0,59512.0,0.16]
[1617332163181,0.06863,59538.0,59512.0,0.155]
[1617332163381,1.0,59537.0,59512.0,0.155]
[1617332163584,0.385828,59536.0,59512.0,0.155]
[1617332163787,0.154,59527.0,59508.0,0.00022]
[1617332163987,0.33827,59515.0,59481.0,0.90399724]
[1617332164182,0.33827,59515.0,59464.0,0.4936]
[1617332164183,0.32096836,59514.0,59482.0,0.410828]
[1617332164382,0.00303724,59514.0,59512.0,0.001]
[1617332164582,3.520828,59513.0,59512.0,0.001]
[1617332164778,4.687828,59513.0,59512.0,0.001]
[1617332164983,3.847828,59513.0,59512.0,0.001]
[1617332165181,1.287828,59513.0,59512.0,0.001]
[1617332165386,0.167,59513.0,59512.0,0.001]
[1617332165791,0.167,59513.0,59512.0,2.401]
[1617332165986,0.19978,59536.0,59512.0,2.786828]
[1617332165987,0.00303724,59533.0,59512.0,2.786828]
[1617332166186,0.166,59536.0,59512.0,2.786828]
[1617332166187,0.00303724,59535.0,59516.0,0.385828]
[1617332166391,0.166,59536.0,59520.0,0.227131]
[1617332166591,0.06347908,59545.0,59524.0,0.385828]
[1617332166592,0.166,59545.0,59524.0,0.385828]
[1617332166784,0.00303724,59544.0,59524.0,0.435828]
[1617332166984,0.00303724,59544.0,59528.0,0.385828]
[1617332167185,0.00303724,59544.0,59532.0,0.252078]
[1617332167385,0.37609736,59555.0,59536.0,0.385828]
[1617332167386,0.3691346,59555.0,59536.0,0.385828]
[1617332167589,0.00571104,59550.0,59536.0,0.435828]
[1617332168215,0.31121104,59550.0,59525.0,0.03248818]
[1617332168417,0.31121104,59550.0,59536.0,0.05]
[1617332168418,1.455,59549.0,59536.0,0.05]
[1617332168615,0.33827,59540.0,59525.0,0.00748818]
[1617332168821,0.07936,59536.0,59525.0,0.00748818]
[1617332169021,0.385828,59532.0,59525.0,0.00748818]
[1617332169218,0.385828,59531.0,59525.0,0.00748818]
[1617332169414,0.07936,59527.0,59525.0,0.00748818]
[1617332169611,2.780825,59526.0,59525.0,0.00748818]
[1617332170016,4.119095,59526.0,59525.0,0.00748818]
[1617332170217,4.749095,59526.0,59525.0,8.18e-06]
[1617332170430,5.073095,59526.0,59525.0,8.18e-06]
[1617332170629,5.136745,59526.0,59525.0,8.18e-06]
[1617332171029,3.638475,59526.0,59525.0,8.18e-06]
[1617332171234,3.474475,59526.0,59525.0,8.18e-06]
[1617332171828,4.634475,59526.0,59525.0,8.18e-06]
[1617332172031,4.931745,59526.0,59525.0,8.18e-06]
[1617332172230,4.926745,59526.0,59525.0,8.18e-06]
[1617332172434,4.588475,59526.0,59525.0,8.18e-06]
[1617332172630,5.0346196,59526.0,59507.0,1.07172488]
[1617332172832,2.4,59513.0,59507.0,1.07172488]
[1617332173055,5.38625397,59513.0,59507.0,1.07172488]
[1617332173257,0.79735,59513.0,59507.0,1.07172488]
[1617332173456,0.55799,59513.0,59507.0,1.07172488]
[1617332173655,2.25799,59513.0,59507.0,1.07172488]
[1617332174054,0.55799,59513.0,59507.0,1.07172488]
[1617332174258,0.55799,59513.0,59507.0,1.12172488]
[1617332174545,0.202,59513.0,59508.0,0.3164352]
[1617332174751,0.202,59513.0,59507.0,1.11272488]
[1617332174752,0.202,59513.0,59512.0,2.73589]
[1617332174943,0.035,59513.0,59512.0,2.97589]
[1617332175148,0.013461,59513.0,59512.0,0.33589]
[1617332175344,0.399351,59513.0,59507.0,1.11272488]
[1617332175550,0.399351,59513.0,59507.0,1.07172488]
[1617332175551,0.252317,59511.0,59507.0,1.07172488]
[1617332175742,2.73827,59508.0,59507.0,1.07172488]
[1617332175944,2.9208656,59508.0,59507.0,1.07172488]
[1617332176143,3.0125956,59508.0,59507.0,1.07172488]
[1617332176340,2.643461,59508.0,59507.0,1.07172488]
[1617332176545,4.7017866,59508.0,59507.0,4.88e-06]
[1617332176749,4.7017866,59508.0,59491.0,5.0]
[1617332176750,4.8617866,59508.0,59491.0,5.0]
[1617332176953,0.159,59492.0,59488.0,0.00022]
[1617332177147,0.385921,59489.0,59475.0,4.52]
[1617332177345,0.013461,59488.0,59487.0,0.00022]
[1617332177546,1.385921,59488.0,59487.0,0.00022]
[1617332177755,0.539921,59488.0,59487.0,0.00022]
[1617332177948,0.420921,59488.0,59487.0,0.00022]
[1617332178145,0.588921,59488.0,59487.0,0.00022]
[1617332178544,0.31429336,59487.0,59461.0,0.02]
[1617332178749,0.31429336,59478.0,59461.0,0.02]
[1617332178952,0.927894,59475.0,59461.0,0.02]
[1617332179147,2.41,59473.0,59446.0,0.21674594]
[1617332179347,0.03781724,59472.0,59446.0,0.21874594]
[1617332179550,0.03781724,59472.0,59448.0,0.06108029]
[1617332179745,0.03781724,59472.0,59448.0,0.002]
[1617332179746,0.6754,59460.0,59448.0,0.002]
[1617332179949,0.03478,59459.0,59448.0,0.002]
[1617332180347,0.03478,59459.0,59444.0,0.022]
[1617332180348,0.6754,59454.0,59444.0,0.022]
[1617332180552,0.03456,59453.0,59449.0,0.0146]
[1617332180750,0.112902,59450.0,59448.0,5.44e-06]
[1617332180951,1.420481,59449.0,59448.0,5.44e-06]
[1617332181148,0.31019606,59447.0,59428.0,0.10592144]
[1617332181348,0.13805,59445.0,59428.0,0.10592144]
[1617332181552,0.252636,59438.0,59428.0,0.10592144]
[1617332181752,2.565,59429.0,59428.0,0.10592144]
[1617332181949,2.565,59429.0,59419.0,3.47e-06]
[1617332181950,0.99978,59428.0,59419.0,3.47e-06]
[1617332182162,0.99978,59414.0,59411.0,3.47e-06]
[1617332182352,1.676751,59412.0,59400.0,0.0997968]
[1617332182553,0.155,59401.0,59400.0,0.0997968]
[1617332182750,1.435292,59401.0,59400.0,0.0997968]
[1617332182948,4.284682,59401.0,59400.0,9.68e-05]
[1617332183149,4.829682,59401.0,59400.0,9.68e-05]
[1617332183354,5.420802,59401.0,59400.0,9.68e-05]
[1617332183762,2.727532,59401.0,59400.0,9.68e-05]
[1617332183963,1.562752,59401.0,59400.0,9.68e-05]
[1617332184161,0.448312,59401.0,59377.0,0.01]
[1617332184371,0.448312,59401.0,59361.0,0.0170968]
[1617332184372,0.00281724,59400.0,59390.0,0.252705]
[1617332184566,0.00281724,59400.0,59386.0,0.336922]
[1617332184567,0.20256,59401.0,59397.0,0.0048]
[1617332184772,1.99769703,59401.0,59400.0,0.385921]
[1617332184964,1.99747703,59401.0,59395.0,0.0062]
[1617332185160,0.035,59400.0,59395.0,0.0062]
[1617332185359,0.202,59400.0,59395.0,0.0062]
[1617332185767,1.99566739,59419.0,59400.0,2.4]
[1617332185964,2.52125842,59443.0,59405.0,0.00303724]
[1617332185965,1.83895289,59426.0,59405.0,0.00303724]
[1617332186185,0.02,59418.0,59409.0,0.381441]
[1617332186386,0.167,59441.0,59413.0,0.386441]
[1617332186583,0.167,59441.0,59418.0,0.0056]
[1617332186783,0.167,59441.0,59425.0,0.0044]
[1617332186988,0.167,59441.0,59433.0,0.3025]
[1617332187187,0.167,59453.0,59437.0,0.356383]
[1617332187386,0.167,59453.0,59441.0,0.390983]
[1617332187584,1.83782753,59466.0,59451.0,0.0054]
[1617332187785,2.00582753,59466.0,59451.0,0.0054]
[1617332188188,0.168,59466.0,59458.0,0.252396]
[1617332188385,0.16,59476.0,59462.0,0.769022]